[Event "1000GM Schev-G2 March 2024"]
[Site "Santa Clara"]
[Date "2024.03.10"]
[Round "2.3"]
[White "Stopa, Jacek"]
[Black "Chiang, Jacob"]
[Result "1-0"]
[ECO "A34"]
[WhiteElo "2335"]
[BlackElo "2154"]
[Annotator "TA"]
[PlyCount "93"]
[EventDate "2024.03.06"]
[EventType "schev"]
[EventCountry "USA"]
[SourceTitle "playchess.com"]
[Source "ChessBase"]
[SourceQuality "1"]
[TimeControl "5400+30"]

{[%evp 13,93,18,18,17,20,4,19,6,23,9,25,17,111,104,104,79,110,63,72,46,32,30,52,50,48,39,75,81,105,52,134,115,108,102,120,47,66,27,27,-18,211,196,405,157,170,113,119,97,176,120,388,384,356,278,224,194,209,192,340,312,362,350,581,564,732,689,1008,964,893,720,723,672,795,790,1186,1058,1691,708,708,647,29987,29988]} 1. Nf3 {[%emt 0:00:08]} Nf6 {[%emt 0:00:50]} 2. c4 {[%emt 0:00:17]} c5 {[%emt 0:00:10]} 3. g3 {[%emt 0:00:40]} Nc6 {[%emt 0:01:36]} 4. Bg2 {[%emt 0:00:11]} e5 {[%emt 0:01:05]} 5. Nc3 {[%emt 0:00:52]} Be7 {[%emt 0:00:07]} 6. O-O {[%emt 0:00:59]} O-O {[%emt 0:00:06]} 7. d3 {[%emt 0:02:20]} d6 {[%emt 1:30:06]} 8. Ne1 {[%emt 0:00:41]} Be6 {[%emt 0:00:00]} 9. Bg5 {[%emt 0:01:17]} Ne8 {[%emt 0:00:00]} 10. Bd2 {[%emt 0:01:31] The position is equal.} f5 {[%emt 0:00:00]} 11. Nd5 {[%emt 0:03:15]} Nf6 {[%emt 0:00:00]} 12. a3 {[%emt 0:03:38]} Bxd5 {[%emt 0:00:00]} (12... Rc8 $11) 13. cxd5 $16 {[%emt 0:01:16]} Nb8 {[%emt 0:00:00]} 14. b4 {[%emt 0:01:52]} Nbd7 {[%emt 0:00:00]} 15. Qb3 {[%emt 0:02:01]} (15. e4 $16) 15... e4 $14 {[%emt 0:00:00]} 16. Qb1 {[%emt 0:08:32]} Re8 {[%emt 0:00:00]} 17. Ra2 {[%emt 0:06:10]} Bf8 {[%emt 0:00:00]} 18. dxe4 {[%emt 0:04:08]} Nxe4 {[%emt 0:00:00]} 19. Nd3 {[%emt 0:01:08]} c4 {[%emt 0:00:00]} 20. Nf4 {[%emt 0:01:29]} Ndf6 {[%emt 0:00:00]} 21. Rc1 {[%emt 0:02:50]} (21. Qc1 $16) 21... b5 {[%emt 0:00:00]} (21... Rc8 $1 $14) 22. Be1 {[%emt 0:01:20]} Qb6 {[%emt 0:00:00]} 23. a4 $1 {[%emt 0:01:31]} a6 {[%emt 0:00:00] [#]} 24. Rd1 {[%emt 0:06:22]} (24. Qa1 $1 $16) 24... g6 $1 {[%emt 0:00:00]} 25. Qa1 {[%emt 0:04:51]} Bg7 {[%emt 0:00:00] White must now prevent ...Ng4.} 26. axb5 {[%emt 0:04:43][%cal Ra2a6]} Qxb5 {[%emt 0:00:00]} (26... Nd7 27. Qc1 axb5 28. Ra5 $14) (26... Nh5 $11 {and Black stays safe.} 27. Qc1 (27. Rxa6 Qxb5 28. Ra5 Rxa5 $11) 27... Nxf4 28. Qxf4 c3) 27. Ne6 $18 {[%emt 0:03:47]} Re7 $2 {[%emt 0:00:00]} (27... c3 {keeps fighting.} 28. Nxg7 (28. Bxc3 Nxc3 29. Qxc3 Rec8 $18) 28... Kxg7 29. Bxe4 (29. Bxc3 Nxc3 30. Qxc3 Rec8 $16) 29... Nxe4) 28. Ra5 $2 {[%emt 0:05:51]} (28. Nxg7 $18 {and White stays clearly on top.} Kxg7 29. f3) 28... Qb6 $16 {[%emt 0:00:00][%cal Oe7e6] [#]} 29. Nxg7 {[%emt 0:00:16]} ({Better is} 29. e3 $1 $18) 29... Rxg7 {[%emt 0:00:00]} 30. Rc1 {[%emt 0:03:19]} Rc7 {[%emt 0:00:00][%cal Bg7c7,Bc7c5,Bc5f5][%mdl 32]} 31. b5 {[%emt 0:02:48]} ({White should play} 31. e3 $18) 31... Nxd5 $2 {[%emt 0:00:00][%mdl 8192]} (31... c3 $16) 32. Bxe4 $18 {[%emt 0:01:43]} (32. bxa6 Rc5 $18) (32. Rxa6 Rca7 $18) 32... fxe4 {[%emt 0:00:00]} 33. bxa6 {[%emt 0:00:32]} (33. Rxa6 Rxa6 34. bxa6 Ra7 $18) 33... Rc5 {[%emt 0:00:00]} 34. Ra3 {[%emt 0:03:36]} Qc6 {[%emt 0:00:00]} 35. a7 {[%emt 0:03:52] Hoping for Rb1.} Nc7 {[%emt 0:01:48]} (35... c3 $142 36. Rb1 (36. Bxc3 Nxc3 37. Rcxc3 Rxc3 $18) 36... c2 37. Rb8+ Kf7 38. Rxa8 (38. Qc1 Nc7 $16) 38... Qxa8 (38... c1=B $2 39. Qh8 $18) (38... c1=Q $2 39. Rb8 $18)) 36. Bd2 {[%emt 0:02:26][%cal Be1d2,Bd2e3,Be3f4,Bf4c7][%mdl 32]} Nb5 {[%emt 0:02:31]} 37. Ra6 {[%emt 0:00:57]} Qc7 {[%emt 0:03:02]} (37... Qd7 38. Be3 Rc7) 38. Be3 {[%emt 0:01:24]} Rf5 {[%emt 0:02:18]} 39. Qa4 {[%emt 0:04:03]} d5 {[%emt 0:04:12][%cal Bd6d5,Bd5d4][%mdl 32]} 40. Qxb5 {[%emt 0:01:58]} d4 {[%emt 0:00:05]} 41. Bf4 {[%emt 0:00:49]} Rxb5 {[%emt 0:00:28]} 42. Bxc7 {[%emt 0:00:06]} c3 {[%emt 0:00:20]} 43. Rb6 {[%emt 0:04:24] Strongly threatening Rb8+.} d3 {[%emt 0:02:13]} 44. exd3 {[%emt 0:02:02] Rb8+ would now be deadly.} ({And not} 44. Rxc3 Rxb6 45. exd3 (45. Bxb6 $2 {is the wrong capture.} d2 $19) 45... Rb1+ 46. Kg2 exd3 (46... Rxa7 47. dxe4 Re1 48. e5 $14) 47. Rxd3 Rxa7 $11) 44... exd3 {[%emt 0:00:13]} 45. Rxc3 {[%emt 0:00:39]} d2 {[%emt 0:00:13]} 46. Rd3 {[%emt 0:00:12]} ({Weaker is} 46. Rxb5 d1=Q+ 47. Kg2 Rxa7 $16) 46... Rc5 {[%emt 0:00:42]} 47. Rb8+ {[%emt 0:00:13] Weighted Error Value: White=0.34/Black=0.78.  Loses game:     	---       	Black=2      Missed win:     	White=1     	---        Mistake:       	White=5     	Black=5      Inaccurate:     	White=3     	Black=3      OK:         	White=11    	Black=7      Best:        	White=1     	Black=3      Strong:       	White=1     	Black=1} 1-0

[Event "1000GM Schev-G2 March 2024"]
[Site "Santa Clara"]
[Date "2024.03.10"]
[Round "2.4"]
[White "Iinuma, Paul Y"]
[Black "Figueredo Losada, Leonel"]
[Result "0-1"]
[ECO "E90"]
[WhiteElo "2141"]
[BlackElo "2325"]
[Annotator "TA"]
[PlyCount "93"]
[EventDate "2024.03.06"]
[EventType "schev"]
[EventCountry "USA"]
[SourceTitle "playchess.com"]
[Source "ChessBase"]
[SourceQuality "1"]
[TimeControl "5400+30"]

{[%evp 12,93,62,22,44,38,48,46,48,48,41,37,44,34,64,44,54,62,78,71,81,83,95,85,116,126,112,131,152,97,95,81,100,64,86,1,77,-27,0,-57,-64,-61,-31,-26,-19,-41,-30,-43,-33,-37,-13,-20,-16,-37,-45,-58,-29,-36,-34,-29,-30,-36,-28,-37,-8,-9,-16,-9,-9,-27,-16,-31,-31,-34,-31,-222,-160,-159,-93,-290,-292,-290,-290,-295]} 1. d4 Nf6 2. c4 d6 3. Nc3 e5 4. Nf3 Nbd7 5. e4 g6 6. Be2 Bg7 7. d5 a5 8. Bg5 h6 9. Be3 Ng4 {White is slightly better.} 10. Bd2 Nc5 11. h3 Nf6 12. Qc2 Qe7 {[%cal Of6e4]} 13. Be3 Nfd7 14. Nd2 Na6 15. a3 Nac5 16. b3 {[%cal Bb2b3,Bb3b4][%mdl 32]} h5 17. Rb1 Bh6 18. Bxh6 Rxh6 19. b4 Na6 20. Nf3 (20. bxa5 $6 Kf8 $11) (20. c5 $142) 20... Kf8 $16 21. Qd2 (21. bxa5 $6 Nac5 $11) 21... Kg7 22. Bd3 (22. bxa5 $6 Nac5 $11) 22... Nf8 23. Qc2 (23. bxa5 $6 Nc5 $11) (23. c5 $16) 23... Nh7 (23... axb4 $11 {remains equal.} 24. axb4 c5) 24. Kd1 ({Much worse is} 24. bxa5 Nc5 $15) (24. Na4 $16) 24... Nf6 25. h4 (25. bxa5 Nc5 26. Rb5 c6 27. Rxc5 dxc5 28. dxc6 bxc6 $19 (28... Rxa5 29. cxb7 Bxb7 30. Qb2 $17)) (25. Re1 $11) 25... axb4 $15 26. axb4 c6 27. Nd2 c5 28. bxc5 Nxc5 29. f3 Rh8 30. Ke2 Ne8 {[%cal Of7f5]} 31. g3 Nc7 32. Kf2 Bd7 33. Bf1 {[%emt 0:16:30]} Rhb8 {[%emt 0:16:30]} 34. Bh3 {[%emt 0:00:30]} Ba4 {[%emt 0:00:30]} 35. Nxa4 {[%emt 0:00:30]} Rxa4 {[%emt 0:00:30]} 36. Bf1 $1 {[%emt 0:00:30]} Rba8 {[%emt 0:00:30]} 37. Be2 {[%emt 0:00:30]} Ra2 {[%emt 0:00:30]} 38. Rb2 {[%emt 0:00:30]} Rxb2 {[%emt 0:00:30]} 39. Qxb2 {[%emt 0:00:30]} Ne8 {[%emt 0:00:30]} 40. Rb1 {[%emt 0:00:30]} Nf6 {[%emt 0:00:30]} 41. Nf1 {[%emt 0:00:30]} Qc7 {[%emt 0:00:30]} 42. Ne3 {[%emt 0:00:30]} Ra4 {[%emt 0:00:30]} 43. Kg1 $2 {[%emt 0:00:30]} (43. Qc1 $15) 43... Qa5 {[%emt 0:00:30] ...Ra2 would now be deadly.} 44. Qc1 {[%emt 0:00:30][%cal Oe3f5]} Kf8 {[%emt 0:00:30] Black is more active.} (44... Ra2 $142 45. Rb2 Rxb2 46. Qxb2 Qe1+ 47. Nf1 Nb3 48. Qxb3 Qxe2) 45. Bf1 {[%emt 0:00:30] [#]} (45. Kg2 $17 {is a better defense.}) 45... Ra3 $1 $19 {[%emt 0:00:30] Strongly threatening ...Nb3.} 46. Bg2 {[%emt 0:00:30]} Qa7 {[%emt 0:00:30] Threatens to win with ...Nb3.} 47. Kh2 {[%emt 0:00:30] Weighted Error Value: White=0.26 (precise) /Black=0.15 (very precise) .  Loses game:     	White=2     	---        Mistake:       	White=4     	Black=2      Inaccurate:     	White=1     	Black=6      OK:         	White=13    	Black=14     Best:        	White=2     	---        Strong:       	White=1     	Black=1} 0-1

[Event "1000GM Schev-G2 March 2024"]
[Site "Santa Clara"]
[Date "2024.03.09"]
[Round "2.4"]
[White "Iinuma, Paul Y"]
[Black "Figueredo Losada, Leonel"]
[Result "1-0"]
[ECO "A11"]
[WhiteElo "2141"]
[BlackElo "2325"]
[Annotator "RC"]
[PlyCount "61"]
[EventDate "2024.03.06"]
[EventType "schev"]
[EventCountry "USA"]
[SourceTitle "playchess.com"]
[Source "ChessBase"]
[SourceQuality "1"]
[TimeControl "5400+30"]

1. Nf3 {[%emt 0:00:03]} d5 {[%emt 0:15:20]} 2. c4 {[%emt 0:01:00]} c6 {[%emt 0:00:39]} 3. e3 {[%emt 0:01:23]} Nf6 {[%emt 0:00:09]} 4. Nc3 {[%emt 0:02:08]} e6 {[%emt 0:01:08]} 5. Qc2 {[%emt 0:04:06]} Nbd7 {[%emt 0:00:30]} 6. b3 {[%emt 0:00:47]} Bd6 {[%emt 0:00:13]} 7. Bb2 {[%emt 0:00:50]} a6 {[%emt 0:05:38]} 8. d4 {[%emt 0:02:21]} Qe7 {[%emt 0:04:22]} 9. Be2 {[%emt 0:00:28]} b6 {[%emt 0:04:45]} 10. O-O {[%emt 0:03:29]} Bb7 {[%emt 0:01:40]} 11. e4 {[%emt 0:02:17]} dxe4 {[%emt 0:00:37]} 12. Nxe4 {[%emt 0:00:10]} Nxe4 {[%emt 0:01:37]} 13. Qxe4 {[%emt 0:00:11]} Nf6 {[%emt 0:08:46]} 14. Qc2 {[%emt 0:00:38]} O-O {[%emt 0:05:08]} 15. Rfe1 {[%emt 0:11:11]} h6 {[%emt 0:10:18]} 16. Bd3 {[%emt 0:07:08]} Rfe8 {[%emt 0:03:33]} 17. Rac1 {[%emt 0:10:05]} Rad8 {[%emt 0:00:26]} 18. h3 {[%emt 0:06:10]} Kh8 {[%emt 0:21:58]} 19. Ne5 {[%emt 0:07:46]} c5 {[%emt 0:01:41]} 20. dxc5 {[%emt 0:04:07]} bxc5 {[%emt 0:00:32]} 21. Re3 {[%emt 0:02:33]} Qc7 {[%emt 0:00:32]} 22. Rce1 {[%emt 0:01:58]} Kg8 {[%emt 0:00:02]} 23. Qe2 {[%emt 0:01:25]} Nd7 {[%emt 0:03:26]} 24. Nxf7 {[%emt 0:10:52]} Kxf7 {[%emt 0:00:02]} 25. Qh5+ {[%emt 0:02:31]} Kg8 {[%emt 0:01:45]} 26. Bxg7 {[%emt 0:01:43]} Nf8 {[%emt 0:00:57]} 27. Bf6 {[%emt 0:02:45]} Bh2+ {[%emt 0:03:25]} 28. Kh1 {[%emt 0:01:40]} Rxd3 {[%emt 0:01:19]} 29. Rxd3 {[%emt 0:01:31]} Qf4 {[%emt 0:00:35]} 30. Be5 {[%emt 0:02:55]} Qxf2 {[%emt 0:03:55]} 31. Qg4+ {[%emt 0:00:26]} 1-0

[Event "1000GM Schev-G2 March 2024"]
[Site "Santa Clara"]
[Date "2024.03.10"]
[Round "2.5"]
[White "Zhou, Ruoyu"]
[Black "Alarcon Bahamondez, Roberto Ignacio"]
[Result "1/2-1/2"]
[ECO "B12"]
[WhiteElo "2168"]
[BlackElo "2335"]
[Annotator "TA"]
[PlyCount "157"]
[EventDate "2024.03.06"]
[EventType "schev"]
[EventCountry "USA"]
[SourceTitle "playchess.com"]
[Source "ChessBase"]
[SourceQuality "1"]
[TimeControl "5400+30"]

{[%evp 36,157,11,9,9,-16,0,0,0,0,0,0,0,0,0,0,0,0,0,0,0,0,0,0,0,0,0,0,0,0,0,0,11,11,11,0,11,0,0,-22,0,0,0,-38,-26,-38,-4,-38,-4,-4,-4,-4,-4,-4,-12,-12,-12,-56,-12,-12,-12,-12,-12,-6,0,0,0,0,0,0,0,0,0,0,0,-17,0,0,0,0,16,-21,-21,-21,-21,-21,-21,-21,-21,-39,-38,-37,-45,-39,-13,-21,0,-37,-4,-7,-3,-10,0,0,0,0,0,0,0,0,0,0,0,0,0,0,0,-15,0,0,0,0,0,0]} 1. e4 c6 2. d4 d5 3. e5 Bf5 4. Nf3 e6 5. Be2 c5 6. c3 Nc6 7. O-O a6 {7...Bg6 is setting a new trend. B12: Caro-Kann: Advance Variation.} 8. Be3 cxd4 9. Nxd4 {[%emt 0:04:30]} Nge7 {[%emt 0:04:30]} 10. f4 {[%emt 0:00:30]} Nxd4 {[%emt 0:00:30]} 11. cxd4 {[%emt 0:00:30]} Qb6 {[%emt 0:00:30]} 12. Qd2 {[%emt 0:00:30]} h5 $146 {[%emt 0:00:30]} ({Predecessor:} 12... Nc6 13. Nc3 Bb4 14. Rfc1 Na5 15. b3 Ba3 16. Rf1 Rc8 17. Na4 Qb4 18. Nc5 Qxd2 19. Bxd2 {0-1 Bodnaruk,A (2350)-Fridman,D (2574) Titled Tuesday intern op 23rd May Early blitz 2023 (2)}) 13. Nc3 {[%emt 0:00:30]} Bg4 {[%emt 0:00:30]} 14. Na4 {[%emt 0:00:30]} Qc6 {[%emt 0:00:30]} 15. b3 {[%emt 0:00:30]} Bxe2 {[%emt 0:00:30]} 16. Qxe2 {[%emt 0:00:30]} Qb5 {[%emt 0:00:30]} 17. Qxb5+ {[%emt 0:00:30]} axb5 {[%emt 0:00:30]} 18. Nc3 {[%emt 0:00:30]} b4 {[%emt 0:00:30]} (18... Nf5 $1 $15 19. Nxb5 Nxe3 20. Nc7+ Kd7 21. Nxa8) 19. Nb5 $11 {[%emt 0:00:30]} Kd7 {[%emt 0:00:30]} 20. Nd6 {[%emt 0:00:30]} (20. Rac1 {is more complex.} Nc6 21. f5 Be7 22. fxe6+ fxe6 23. Rf7) 20... Nf5 {[%emt 0:00:30]} (20... f6 {keeps more tension.} 21. Rfc1 Rb8 22. f5 fxe5 23. Nf7 Nxf5 24. Nxe5+ Ke8) 21. Nxf5 {[%emt 0:00:30]} exf5 {[%emt 0:00:30]} 22. Rfc1 {[%emt 0:00:30]} Be7 {[%emt 0:00:30]} 23. Rc2 {[%emt 0:00:30]} Rh6 {[%emt 0:00:30]} 24. Rac1 {[%emt 0:00:30]} Rc6 {[%emt 0:00:30]} 25. Kf2 {[%emt 0:00:30]} Rac8 {[%emt 0:00:30]} 26. Rxc6 {[%emt 0:00:30]} bxc6 {[%emt 0:00:30]} 27. Ke2 {[%emt 0:00:30]} Kc7 {[%emt 0:00:30]} 28. Rc2 {[%emt 0:00:30]} Kb6 {[%emt 0:00:30]} 29. Kd3 {[%emt 0:00:30]} Kb5 {[%emt 0:00:30]} 30. Rc1 {[%emt 0:00:30]} Ra8 {[%emt 0:00:30]} 31. Rc2 {[%emt 0:00:30]} Rh8 {[%emt 0:00:30]} 32. Ke2 {[%emt 0:00:30]} Rh6 {[%emt 0:00:30]} 33. Kf3 {[%emt 0:00:30]} h4 {[%emt 0:00:30]} 34. Rc1 {[%emt 0:00:30]} Rh8 {[%emt 0:00:30]} 35. Rc2 {[%emt 0:00:30]} Rc8 {[%emt 0:00:30]} 36. Ke2 {[%emt 0:00:30]} h3 {[%emt 0:00:30]} 37. Kd3 {[%emt 0:00:30]} ({Much worse is} 37. gxh3 Rh8 38. Bf2 Rxh3 $15) 37... hxg2 {[%emt 0:00:30]} 38. Rxg2 {[%emt 0:00:30]} Rg8 {[%emt 0:00:30]} 39. Rg1 {[%emt 0:00:30]} g6 {[%emt 0:00:30]} 40. Rg2 {[%emt 0:00:30]} Kb6 {[%emt 0:00:30]} 41. Bg1 {[%emt 0:00:30]} Kc7 {[%emt 0:00:30]} 42. Bf2 {[%emt 0:00:30]} Kd7 {[%emt 0:00:30]} 43. Bg3 {[%emt 0:00:30]} Ra8 {[%emt 0:00:30]} 44. Rc2 {[%emt 0:00:30]} Rh8 {[%emt 0:00:30]} 45. Ke2 {[%emt 0:00:30]} Bd8 {[%emt 0:00:30]} 46. Ke3 {[%emt 0:00:30]} Bb6 {[%emt 0:00:30]} 47. h4 {[%emt 0:00:30]} Bd8 {[%emt 0:00:30]} 48. Kf3 {[%emt 0:00:30]} Be7 {[%emt 0:00:30]} (48... Bxh4 $2 {loses.} 49. Rh2 $18) 49. Be1 {[%emt 0:00:30]} Kc7 {[%emt 0:00:30]} 50. Rg2 {[%emt 0:00:30]} Kd7 {[%emt 0:00:30]} 51. Rc2 {[%emt 0:00:30]} Rb8 {[%emt 0:00:30]} 52. Ke3 {[%emt 0:00:30]} Rb5 {[%emt 0:00:30]} 53. Kd3 {[%emt 0:00:30]} Rb6 {[%emt 0:00:30]} 54. Rh2 {[%emt 0:00:30]} Ra6 {[%emt 0:00:30]} 55. Rc2 {[%emt 0:00:30]} Ke6 {[%emt 0:00:30]} 56. Ke3 {[%emt 0:00:30]} Rb6 {[%emt 0:00:30]} 57. Kf3 {[%emt 0:00:30]} f6 {[%emt 0:00:30]} 58. exf6 {[%emt 0:00:30]} Kxf6 {[%emt 0:00:30]} 59. Re2 {[%emt 0:00:30]} Kf7 {[%emt 0:00:30]} 60. Bf2 {[%emt 0:00:30]} Bf6 {[%emt 0:00:30]} 61. Rc2 {[%emt 0:00:30]} Ra6 {[%emt 0:00:30]} 62. Kg3 {[%emt 0:00:30]} Ke6 {[%emt 0:00:30]} 63. Kf3 {[%emt 0:00:30]} Kd7 {[%emt 0:00:30]} 64. Be1 {[%emt 0:00:30]} Be7 {[%emt 0:00:30]} 65. Ke3 {[%emt 0:00:30]} Ra8 {[%emt 0:00:30]} 66. Kf3 {[%emt 0:00:30]} Rh8 {[%emt 0:00:30]} 67. Rg2 {[%emt 0:00:30]} Rh6 {[%emt 0:00:30]} 68. Ke3 {[%emt 0:00:30]} c5 {[%emt 0:00:30]} 69. Rc2 {[%emt 0:00:30]} Bxh4 {[%emt 0:00:30]} 70. Bxh4 {[%emt 0:00:30]} Rxh4 {[%emt 0:00:30]} 71. Rxc5 {[%emt 0:00:30]} Rh3+ {[%emt 0:00:30]} 72. Ke2 {[%emt 0:00:30]} Rh2+ {[%emt 0:00:30]} 73. Kf3 {[%emt 0:00:30]} Rxa2 {[%emt 0:00:30]} 74. Rxd5+ {[%emt 0:00:30]} Kc6 {[%emt 0:00:30]} 75. Rc5+ {[%emt 0:00:30]} Kb6 {[%emt 0:00:30]} 76. Rd5 {[%emt 0:00:30]} Kc6 {[%emt 0:00:30]} 77. Rc5+ {[%emt 0:00:30]} Kb6 {[%emt 0:00:30]} 78. Rc4 {[%emt 0:00:30]} Kb5 {[%emt 0:00:30]} 79. Rc5+ {[%emt 0:00:30]} 1/2-1/2

[Event "1000GM Schev-G2 March 2024"]
[Site "Santa Clara"]
[Date "2024.03.10"]
[Round "3.1"]
[White "Tang, Dylan"]
[Black "Garcia Guerrero, Isaac Antonio"]
[Result "1-0"]
[ECO "B36"]
[WhiteElo "2152"]
[BlackElo "2300"]
[Annotator "TA"]
[PlyCount "65"]
[EventDate "2024.03.06"]
[EventType "schev"]
[EventCountry "USA"]
[SourceTitle "playchess.com"]
[Source "ChessBase"]
[SourceQuality "1"]
[TimeControl "5400+30"]

{[%evp 18,65,46,34,57,37,38,27,63,25,33,35,29,38,39,17,37,18,39,18,35,28,35,10,8,0,45,53,24,35,23,48,35,50,51,52,231,21,19,0,13,-494,181,-506,263,263,1272,1270,2932,2272]} 1. e4 {[%emt 0:06:12]} c5 {[%emt 0:00:35]} 2. Nf3 {[%emt 0:00:09]} g6 {[%emt 0:00:27]} 3. d4 {[%emt 0:00:29]} cxd4 {[%emt 0:00:09]} 4. Nxd4 {[%emt 0:00:08]} Nc6 {[%emt 0:00:13]} 5. c4 {[%emt 0:00:09]} Nf6 {[%emt 0:00:16]} 6. Nc3 {[%emt 0:00:07]} d6 {[%emt 0:00:20]} 7. Be2 {[%emt 0:00:21]} Nxd4 {[%emt 0:00:21]} 8. Qxd4 {[%emt 0:00:07]} Bg7 {[%emt 0:00:05]} 9. Be3 {[%emt 0:00:15]} O-O {[%emt 0:00:10]} 10. Qd2 {[%emt 0:00:33]} a5 {[%emt 0:00:10][%cal Ba7a5,Ba5a4][%mdl 32]} 11. O-O {[%emt 0:06:55]} a4 {[%emt 0:00:13]} 12. Rab1 {[%emt 0:03:28]} Be6 {[%emt 0:01:16] Weiß hat minimalen Vorteil.} 13. Rfc1 {[%emt 0:04:06]} Qa5 {[%emt 0:00:54]} 14. b4 {[%emt 0:02:47]} axb3 {[%emt 0:00:08]} 15. axb3 {[%emt 0:00:05][%cal Ba2b3,Bb3b4,Bb4c5][%mdl 32]} Rfc8 {[%emt 0:06:11]} 16. Qc2 {[%emt 0:08:05]} Qd8 {[%emt 0:07:04]} 17. f4 {[%emt 0:03:54]} Ra5 {[%emt 0:05:48][%cal Ob7b5]} 18. Na4 {[%emt 0:12:23]} Nd7 {[%emt 0:13:41] Lässt Bb6 nicht zu} 19. b4 {[%emt 0:02:59]} Raa8 {[%emt 0:01:35]} 20. f5 {[%emt 0:00:27]} gxf5 {[%emt 0:03:11]} 21. exf5 {[%emt 0:00:29]} Bxc4 {[%emt 0:05:30]} 22. Bxc4 {[%emt 0:00:08] Qd1 ist eine echte Drohung.} d5 {[%emt 0:03:41] [#]} 23. Nc5 $1 {[%emt 0:00:58]} Nxc5 $1 {[%emt 0:02:53]} 24. bxc5 {[%emt 0:00:09]} dxc4 {[%emt 0:00:11]} 25. Qxc4 {[%emt 0:00:25][%cal Oc4e4]} Qd7 {[%emt 0:01:11]} 26. Qg4 {[%emt 0:07:47][%cal Ob1b7] Und jetzt Rxb7! wäre schön.} Ra3 $2 {[%emt 0:13:42]} (26... Kh8 $14) 27. Rd1 $2 {[%emt 0:14:23]} (27. Rxb7 $1 $18 h5 (27... Qxb7 $2 28. Bh6 $18) 28. Qxg7+ (28. Rxd7 hxg4 29. Bg5 Kh7 $18) 28... Kxg7 29. Rxd7 Rxe3 30. c6) 27... Rd3 $11 {[%emt 0:01:02]} 28. Qf3 {[%emt 0:00:34]} Ra8 {[%emt 0:06:10]} 29. Rdc1 $2 {[%emt 0:26:28][%mdl 8192]} (29. Rxb7 $2 Rxd1+ 30. Kf2 Qd3 $19) (29. Qf1 $11 {und Weiss muss sich keine Sorgen machen.} Rxd1 30. Rxd1) 29... Rda3 $4 {[%emt 0:27:53][%mdl 8192] [#]} (29... Rxe3 $1 $19 30. Rd1 (30. Qxe3 $2 Bd4 $19) 30... Rxf3 31. Rxd7 Rxf5 32. Rxe7 Bd4+ (32... Rxc5 $2 33. Rexb7 Bd4+ 34. Kh1 $19) 33. Kh1 Ra7 (33... Bxc5 $2 34. Rexb7 Ra2 35. h3 $19)) 30. Qg4 {[%mdl 8192]} Rc8 $4 {[%emt 0:00:30][%mdl 8192] [#]} (30... Rxe3 $19 {und Schwarz kann entspannen.} 31. Kh1 Re5) 31. Rxb7 $1 $18 {[%emt 0:01:00]} Qd3 {[%emt 0:00:30]} (31... Qxb7 $2 {zu gefräßig.} 32. Bh6 Kf8 33. Qxg7+ Ke8 34. Rd1 $18 (34. Qxh7 Qd5 $11) (34. Qxh7 Qd5 $11)) (31... h5 32. Qxg7+ (32. Rxd7 hxg4 33. Bg5 Ra4 $18) 32... Kxg7 33. Rxd7 Rxe3) 32. Rxe7 {[%emt 0:00:30] Weiss droht f6 und Matt.} Kf8 {[%emt 0:00:30] [#]} 33. f6 $1 {[%emt 0:00:30] Gewichteter Fehlerwert: Weiß=0.75/Schwarz=0.82.  Verlustzug:     	Weiß=1     	Schwarz=1     Gewinn verpasst:   	Weiß=2     	Schwarz=2     Fehler:       	---       	Schwarz=1     Ungenau:       	Weiß=1     	Schwarz=3     OK:         	Weiß=3     	Schwarz=6     Bester:       	Weiß=1     	Schwarz=2     Stark:        	Weiß=2     	Schwarz=1} 1-0

[Event "1000GM Schev-G2 March 2024"]
[Site "Santa Clara"]
[Date "2024.03.10"]
[Round "3.2"]
[White "Pullela, Sricharan"]
[Black "Stopa, Jacek"]
[Result "1/2-1/2"]
[ECO "D03"]
[WhiteElo "2114"]
[BlackElo "2335"]
[Annotator "TA"]
[PlyCount "44"]
[EventDate "2024.03.06"]
[EventType "schev"]
[EventCountry "USA"]
[SourceTitle "playchess.com"]
[Source "ChessBase"]
[SourceQuality "1"]
[TimeControl "5400+30"]

{[%evp 11,44,9,7,0,0,-2,0,0,7,0,5,3,29,22,29,35,34,38,46,53,55,54,50,30,40,12,41,41,54,41,36,33,52,28,42]} 1. d4 {[%emt 0:00:27]} Nf6 {[%emt 1:31:00]} 2. Bg5 {[%emt 0:00:07]} Ne4 {[%emt 0:00:00]} 3. Bf4 d5 {[%emt 0:00:00]} 4. Nd2 {[%emt 0:00:00]} Bf5 {[%emt 0:00:00]} 5. e3 {[%emt 0:00:06]} e6 {[%emt 0:00:00]} 6. Ngf3 Bd6 {[%emt 0:02:30]} 7. Be2 {[%emt 1:33:20]} Bxf4 {[%emt 0:00:30]} 8. exf4 {[%emt 0:00:30]} Qd6 {[%emt 0:00:00]} 9. g3 {Die Stellung ist ausgeglichen.} Nd7 {[%emt 0:00:00]} 10. c3 h6 {[%emt 0:01:30]} 11. Ne5 {[%emt 0:00:00]} Nxe5 {[%emt 0:00:00]} 12. fxe5 Qb6 {[%emt 0:01:00]} 13. Qb3 {[%emt 0:02:30]} Nxd2 {[%emt 0:00:00]} 14. Kxd2 {[%emt 0:00:00]} O-O {[%emt 0:00:00]} 15. Qxb6 {[%emt 0:00:00]} axb6 {[%emt 0:00:00]} 16. a3 {[%emt 0:01:30]} c5 {[%emt 0:00:00]} 17. g4 {[%emt 0:00:00]} Bh7 {[%emt 0:00:00]} 18. f4 {[%emt 0:00:00]} Be4 {[%emt 0:00:00]} 19. Rhf1 {[%emt 0:00:00]} f5 {[%emt 0:00:00]} 20. exf6 {[%emt 0:00:00]} gxf6 {[%emt 0:00:00]} 21. h4 {[%emt 0:00:00]} Rac8 {[%emt 0:00:00]} 22. Rac1 {[%emt 0:00:00]} Rc7 {[%emt 0:00:00] Gewichteter Fehlerwert: Weiß=0.07 (makellos) /Schwarz=0.08 (makellos) .  Ungenau:       	Weiß=1     	Schwarz=2     OK:         	Weiß=5     	Schwarz=2} 1/2-1/2